fUSD/lending_fUSD_20260423
["ID","MTS","AMOUNT","RATE_DAILY","PERIOD"]
[421017232,1776928277690,-500.0,0.00010673,2]
[421017233,1776928277699,-500.17951392,0.00010673,2]
[421017234,1776928277708,-500.0,0.00010673,2]
[421017235,1776928277717,-500.0,0.00010673,2]
[421017236,1776928277726,-317.03205057,0.00010673,2]
[421017237,1776928277735,-500.96835289,0.00010673,2]
[421017238,1776928277745,-314318.2285322,0.0001069,3]
[421017239,1776928277754,-20316.80948044,0.0001069,3]
[421017240,1776928277764,-463906.69117249,0.000107,2]
[421017241,1776928277774,-223586.17621152,0.000107,2]
[421017242,1776928277783,-343790.89243151,0.000107,2]
[421017243,1776928277792,-627141.40153693,0.000107,2]
[421017244,1776928277802,-157658.15554734,0.000107,2]
[421017245,1776928277811,-500.0,0.000107,2]
[421017246,1776928277819,-500.0,0.000107,2]
[421017247,1776928277829,-500.0,0.000107,2]
[421017248,1776928277838,-500.0,0.000107,2]
[421017249,1776928277847,-500.0,0.000107,2]
[421017250,1776928277856,-500.0,0.000107,2]
[421017251,1776928277865,-500.0,0.000107,2]
[421017252,1776928277875,-500.0,0.000107,2]
[421017253,1776928277884,-500.0,0.000107,2]
[421017254,1776928277893,-500.0,0.000107,2]
[421017255,1776928277903,-500.0,0.000107,2]
[421017256,1776928277913,-500.0,0.000107,2]
[421017257,1776928277922,-500.0,0.000107,2]
[421017258,1776928277931,-500.0,0.000107,2]
[421017259,1776928277940,-500.0,0.000107,2]
[421017260,1776928277949,-500.0,0.000107,2]
[421017261,1776928277958,-500.0,0.000107,2]
[421017262,1776928277967,-500.0,0.000107,2]
[421017263,1776928277976,-500.0,0.000107,2]
[421017264,1776928277985,-500.0,0.000107,2]
[421017265,1776928277994,-500.0,0.000107,2]
[421017266,1776928278004,-500.0,0.000107,2]
[421017267,1776928278013,-500.0,0.000107,2]
[421017268,1776928278022,-500.0,0.000107,2]
[421017269,1776928278032,-500.0,0.000107,2]
[421017270,1776928278041,-500.0,0.000107,2]
[421017271,1776928278050,-500.0,0.000107,2]
[421017272,1776928278059,-215.0,0.000107,2]
[421017273,1776928278068,-88408.80069742,0.000107,2]
[421017274,1776928278077,-151.187825,0.000107,2]
[421017275,1776928278086,-151.0,0.000107,2]
[421017276,1776928278095,-151.0,0.000107,2]
[421017277,1776928278105,-157.04919,0.000107,2]
[421017278,1776928278114,-151.0,0.000107,2]
[421017279,1776928278123,-151.0,0.000107,2]
[421017280,1776928278132,-471.859588,0.000107,2]
[421017281,1776928278141,-471.859588,0.000107,2]
[421017282,1776928278150,-471.859588,0.000107,2]
[421017283,1776928278159,-471.859588,0.000107,2]
[421017284,1776928278169,-471.859588,0.000107,2]
[421017285,1776928278178,-471.859588,0.000107,2]
[421017286,1776928278187,-471.859588,0.000107,2]
[421017287,1776928278197,-471.859588,0.000107,2]
[421017288,1776928278206,-500.0,0.000107,2]
[421017289,1776928278216,-500.0,0.000107,2]
[421017290,1776928278225,-500.0,0.000107,2]
[421017291,1776928278235,-500.0,0.000107,2]
[421017292,1776928278244,-500.0,0.000107,2]
[421017293,1776928278253,-500.0,0.000107,2]
[421017294,1776928278262,-500.0,0.000107,2]
[421017295,1776928278271,-500.0,0.000107,2]
[421017296,1776928278281,-500.0,0.000107,2]
[421017297,1776928278290,-500.0,0.000107,2]
[421017298,1776928278300,-500.0,0.000107,2]
[421017299,1776928278312,-500.0,0.000107,2]
[421017300,1776928278323,-500.0,0.000107,2]
[421017301,1776928278333,-500.0,0.000107,2]
[421017302,1776928278342,-500.0,0.000107,2]
[421017303,1776928278352,-500.0,0.000107,2]
[421017304,1776928278362,-500.0,0.000107,2]
[421017305,1776928278372,-500.0,0.000107,2]
[421017306,1776928278381,-500.0,0.000107,2]
[421017307,1776928278391,-500.0,0.000107,2]
[421017308,1776928278402,-500.0,0.000107,2]
[421017309,1776928278412,-500.0,0.000107,2]
[421017310,1776928278422,-500.0,0.000107,2]
[421017311,1776928278431,-500.0,0.000107,2]
[421017312,1776928278440,-500.0,0.000107,2]
[421017313,1776928278450,-500.0,0.000107,2]
[421017314,1776928278459,-500.0,0.000107,2]
[421017315,1776928278468,-500.0,0.000107,2]
[421017316,1776928278478,-500.0,0.000107,2]
[421017317,1776928278488,-500.0,0.000107,2]
[421017318,1776928278497,-500.0,0.000107,2]
[421017319,1776928278506,-500.0,0.000107,2]
[421017320,1776928278515,-500.0,0.000107,2]
[421017321,1776928278525,-500.0,0.000107,2]
[421017322,1776928278535,-500.0,0.000107,2]
[421017323,1776928278544,-500.0,0.000107,2]
[421017324,1776928278558,-500.0,0.000107,2]
[421017325,1776928278568,-500.0,0.000107,2]
[421017326,1776928278578,-500.0,0.000107,2]
[421017327,1776928278588,-500.0,0.000107,2]
[421017328,1776928278597,-500.0,0.000107,2]
[421017329,1776928278607,-500.0,0.000107,2]
[421017330,1776928278616,-500.0,0.000107,2]
[421017331,1776928278626,-500.0,0.000107,2]
[421017332,1776928278635,-500.0,0.000107,2]
[421017333,1776928278645,-500.0,0.000107,2]
[421017334,1776928278655,-500.0,0.000107,2]
[421017335,1776928278664,-500.0,0.000107,2]
[421017336,1776928278674,-500.0,0.000107,2]
[421017337,1776928278684,-500.0,0.000107,2]
[421017338,1776928278694,-500.0,0.000107,2]
[421017339,1776928278704,-500.0,0.000107,2]
[421017340,1776928278713,-500.0,0.000107,2]
[421017341,1776928278722,-500.0,0.000107,2]
[421017342,1776928278732,-500.0,0.000107,2]
[421017343,1776928278742,-500.0,0.000107,2]
[421017344,1776928278751,-500.0,0.000107,2]
[421017345,1776928278761,-500.0,0.000107,2]
[421017346,1776928278771,-500.0,0.000107,2]
[421017347,1776928278780,-500.0,0.000107,2]
[421017348,1776928278789,-500.0,0.000107,2]
[421017349,1776928278799,-500.0,0.000107,2]
[421017350,1776928278808,-500.0,0.000107,2]
[421017351,1776928278818,-500.0,0.000107,2]
[421017352,1776928278827,-500.0,0.000107,2]
[421017353,1776928278836,-500.0,0.000107,2]
[421017354,1776928278846,-500.0,0.000107,2]
[421017355,1776928278856,-500.0,0.000107,2]
[421017356,1776928278865,-500.0,0.000107,2]
[421017357,1776928278875,-500.0,0.000107,2]
[421017358,1776928278884,-26815.0,0.000107,2]
[421017359,1776928278894,-26815.0,0.000109,2]
[421017360,1776928278903,-21596.6590583,0.000109,2]
[421017361,1776928278912,-21596.65905827,0.000109,2]
[421017362,1776928278922,-21596.65905827,0.000109,2]
[421017363,1776928278931,-21596.65905827,0.000109,2]
[421017364,1776928278942,-21596.65905827,0.000109,2]
[421017365,1776928278952,-21596.65905827,0.000109,2]
[421017366,1776928278961,-21596.65905827,0.000109,2]
[421017367,1776928278970,-21596.65905827,0.000109,2]
[421017368,1776928278979,-500.0,0.00010958,2]
[421017369,1776928278989,-500.0,0.00010958,3]
[421017370,1776928278999,-500.0,0.00010958,4]
[421017371,1776928279008,-500.0,0.00010958,5]
[421017372,1776928279018,-500.0,0.00010958,6]
[421017373,1776928279028,-500.0,0.00010958,7]
[421017374,1776928279038,-500.0,0.00010958,2]
[421017375,1776928279047,-500.0,0.00010958,2]
[421017376,1776928279056,-500.0,0.00010958,2]
[421017377,1776928279066,-515.99636317,0.00010958,3]
[421017378,1776928279075,-500.0,0.00010958,2]
[421017379,1776928279085,-500.0,0.00010958,2]
[421017380,1776928279095,-500.0,0.00010958,3]
[421017381,1776928279105,-500.0,0.00010958,4]
[421017382,1776928279114,-500.0,0.00010958,5]
[421017383,1776928279123,-500.0,0.00010958,6]
[421017384,1776928279133,-500.0,0.00010958,2]
[421017385,1776928279143,-500.0,0.00010958,2]
[421017386,1776928279152,-500.0,0.00010958,2]
[421017387,1776928279161,-500.0,0.00010958,2]
[421017388,1776928279171,-568.4442914,0.00010959,2]
[421017389,1776928279181,-150.0,0.00010959,2]
[421017390,1776928279191,-150.0,0.00010959,2]
[421017391,1776928279200,-3240.0,0.00010959,2]
[421017392,1776928279210,-1200.0,0.00010959,2]
[421017393,1776928279220,-1200.0,0.00010959,2]
[421017394,1776928279230,-1200.0,0.00010959,2]
[421017395,1776928279240,-1200.0,0.00010959,2]
[421017396,1776928279249,-1200.0,0.00010959,2]
[421017397,1776928279258,-1200.0,0.00010959,2]
[421017398,1776928279268,-1200.0,0.00010959,2]
[421017399,1776928279277,-1200.0,0.00010959,2]
[421017400,1776928279287,-1200.0,0.00010959,2]
[421017401,1776928279296,-1200.0,0.00010959,2]
[421017402,1776928279305,-1200.0,0.00010959,2]
[421017403,1776928279315,-1200.0,0.00010959,2]
[421017404,1776928279324,-1200.0,0.00010959,2]
[421017405,1776928279333,-803.73998829,0.00010959,2]
[421017406,1776928279342,-169.450916,0.00010959,2]
[421017407,1776928279352,-169.450916,0.00010959,2]
[421017408,1776928279362,-169.450916,0.00010959,2]
[421017409,1776928279371,-169.450916,0.00010959,2]
[421017410,1776928279381,-169.450916,0.00010959,2]
[421017411,1776928279390,-169.450916,0.00010959,2]
[421017412,1776928279400,-169.450916,0.00010959,2]
[421017413,1776928279409,-169.450916,0.00010959,2]
[421017414,1776928279419,-196.060935,0.00010959,2]
[421017415,1776928279428,-196.060935,0.00010959,2]
[421017416,1776928279437,-196.060935,0.00010959,2]
[421017417,1776928279446,-196.060935,0.00010959,2]
[421017418,1776928279456,-240.53,0.00010959,2]
[421017419,1776928279465,-300.0,0.00010988,2]
[421017420,1776928279475,-699.3953229,0.00010988,2]
[421017421,1776928279484,-300.0,0.00010988,2]
[421017422,1776928279494,-335.53,0.00010989,2]
[421017423,1776928279503,-479.48,0.00010989,2]
[421017424,1776928279513,-150.0,0.00010989,2]
[421017425,1776928279522,-256.76,0.00010989,2]
[421017426,1776928279532,-319.57,0.00010989,2]
[421017427,1776928279541,-511.21,0.00010989,2]
[421017428,1776928279551,-175.76,0.00010989,2]
[421017429,1776928279560,-465.37,0.00010989,2]
[421017430,1776928279570,-1865.79,0.00010989,2]
[421017431,1776928279579,-150.0,0.00010989,2]
[421017432,1776928279588,-1411.31,0.00010989,2]
[421017433,1776928279598,-788.25,0.00010989,2]
[421017434,1776928279607,-598.38,0.00010989,2]
[421017435,1776928279617,-150.0,0.00010989,2]
[421017436,1776928279626,-516.0,0.00010989,2]
[421017437,1776928279636,-1113.59,0.00010989,2]
[421017438,1776928279645,-457.24,0.00010989,2]
[421017439,1776928279654,-2000.0,0.00010989,2]
[421017440,1776928279663,-2000.0,0.00010989,2]
[421017441,1776928279672,-611.85,0.00010989,2]
[421017442,1776928279681,-619.29,0.00010989,2]
[421017443,1776928279691,-688.03,0.00010989,2]
[421017444,1776928279700,-414.5,0.00010989,2]
[421017445,1776928279709,-183.14,0.00010989,2]
[421017446,1776928279719,-529.06,0.00010989,2]
[421017447,1776928279728,-281.63,0.00010989,2]
[421017448,1776928279738,-754.9,0.00010989,2]
[421017449,1776928279747,-1275.45,0.00010989,2]
[421017450,1776928279756,-451.91,0.00010989,2]
[421017451,1776928279766,-293.5,0.00010989,2]
[421017452,1776928279775,-537.31,0.00010989,2]
[421017453,1776928279785,-2000.0,0.00010989,2]
[421017454,1776928279794,-506.63,0.00010989,2]
[421017455,1776928279804,-2000.0,0.00010989,2]
[421017456,1776928279813,-481.33,0.00010989,2]
[421017457,1776928279822,-150.01,0.00010989,2]
[421017458,1776928279832,-287.73,0.00010989,2]
[421017459,1776928279841,-326.83,0.00010989,2]
[421017460,1776928279851,-257.59,0.00010989,2]
[421017461,1776928279861,-300.0,0.00010999,2]
[421017462,1776928279871,-666.0,0.00010999,2]
[421017463,1776928279880,-666.0,0.00010999,2]
[421017464,1776928279889,-300.0,0.00010999,2]
[421017465,1776928279899,-666.0,0.00010999,2]
[421017466,1776928279908,-300.0,0.00010999,2]
[421017467,1776928279917,-666.0,0.00010999,2]
[421017468,1776928279927,-300.0,0.00010999,2]
[421017469,1776928279936,-26815.0,0.00011,2]
[421017470,1776928279946,-26815.0,0.00011,2]
[421017471,1776928279955,-26815.0,0.00011,2]
[421017472,1776928279964,-755.57180994,0.00011,2]
[421017473,1776928279974,-158.0,0.00011,2]
[421017474,1776928279983,-159.0,0.00011,2]
[421017475,1776928279993,-159.88,0.00011,2]
[421017476,1776928280002,-3329.39006307,0.00011,2]
[421017477,1776928280012,-700.0,0.0001107,2]
[421017478,1776928280022,-400.0,0.0001107,2]
[421017479,1776928280031,-300.0,0.00011098,2]
[421017480,1776928280041,-666.0,0.00011098,2]
[421017481,1776928280050,-666.0,0.00011098,2]
[421017482,1776928280060,-300.0,0.00011098,2]
[421017483,1776928280069,-666.0,0.00011098,2]
[421017484,1776928280079,-300.0,0.00011098,2]
[421017485,1776928280088,-666.0,0.00011098,2]
[421017486,1776928280098,-300.0,0.00011098,2]
[421017487,1776928280107,-300.0,0.00011098,2]
[421017488,1776928280116,-300.0,0.00011098,2]
[421017489,1776928280126,-666.0,0.00011098,2]
[421017490,1776928280136,-666.0,0.00011098,2]
[421017491,1776928280146,-666.0,0.00011098,2]
[421017492,1776928280155,-300.0,0.00011098,2]
[421017493,1776928280165,-805.82259305,0.00011098,2]
[421017494,1776928280175,-669261.28674043,0.00011099,2]
[421017495,1776928280184,-151.0,0.00011099,2]
[421017496,1776928280193,-471.859588,0.00011099,2]
[421017497,1776928280203,-471.859588,0.00011099,2]
[421017498,1776928280212,-471.859588,0.00011099,2]
[421017499,1776928280221,-471.859588,0.00011099,2]
[421017500,1776928280231,-1614.12194469,0.000111,2]
[421017501,1776928280240,-1614.12194469,0.000111,2]
[421017502,1776928280250,-2129.96041626,0.000111,2]
[421017503,1776928280260,-1058.54703608,0.000111,2]
[421017504,1776928280269,-1058.54703608,0.000111,2]
[421017505,1776928280279,-500.0,0.0001111,2]
[421017506,1776928280288,-201.38,0.0001122,2]
[421017507,1776928280298,-289.05,0.0001122,2]
[421017508,1776928280308,-324.64,0.0001122,2]
[421017509,1776928280317,-389.14,0.0001122,2]
[421017510,1776928280327,-1223.04,0.0001122,2]
[421017511,1776928280336,-946.62,0.0001122,2]
[421017512,1776928280345,-501.74,0.0001122,2]
[421017513,1776928280356,-322.98,0.0001122,2]
[421017514,1776928280366,-367.73,0.0001122,2]
[421017515,1776928280375,-502.3,0.0001122,2]
[421017516,1776928280384,-469.12,0.0001122,2]
[421017517,1776928280393,-1936.26,0.0001122,2]
[421017518,1776928280403,-150.0,0.0001122,2]
[421017519,1776928280412,-473.04,0.0001122,2]
[421017520,1776928280423,-401.13,0.0001122,2]
[421017521,1776928280433,-283.31,0.0001122,2]
[421017522,1776928280442,-242.22,0.0001122,2]
[421017523,1776928280452,-464.28,0.0001122,2]
[421017524,1776928280462,-648.91,0.0001122,2]
[421017525,1776928280471,-412.38,0.0001122,2]
[421017526,1776928280481,-315.78,0.0001122,2]
[421017527,1776928280490,-1243.57,0.0001122,2]
[421017528,1776928280499,-1259.99,0.0001122,2]
[421017529,1776928280509,-196.12,0.0001122,2]
[421017530,1776928280518,-353.75,0.0001122,2]
[421017531,1776928280527,-500.37930615,0.00011221,2]
[421017532,1776928280537,-1000.0,0.00011221,2]
[421017533,1776928280546,-1000.0,0.00011221,2]
[421017534,1776928280556,-1000.0,0.00011221,2]
[421017535,1776928280565,-1000.0,0.00011221,2]
[421017536,1776928280574,-1000.0,0.00011221,2]
[421017537,1776928280585,-500.0,0.00011221,2]
[421017538,1776928280595,-500.0,0.00011221,2]
[421017539,1776928280605,-282.6420144,0.00011221,2]
[421017540,1776928280614,-1000.0,0.00011221,2]
[421017541,1776928280624,-1000.0,0.00011221,2]
[421017542,1776928280634,-501.90476955,0.00011221,2]
[421017543,1776928280643,-462.60184695,0.00011221,2]
[421017544,1776928280653,-150.0,0.00011233,2]
[421017545,1776928280662,-4979.0,0.00011267,2]
[421017546,1776928280671,-2000.0,0.00011301,2]
[421017547,1776928280680,-300.0,0.00011313,2]
[421017548,1776928280689,-666.0,0.00011313,2]
[421017549,1776928280699,-666.0,0.00011313,2]
[421017550,1776928280709,-666.0,0.00011313,2]
[421017551,1776928280719,-300.0,0.00011313,2]
[421017552,1776928280729,-300.0,0.00011313,2]
[421017553,1776928280739,-2979.66,0.00011314,2]
[421017554,1776928280888,-11050.54,0.00011314,2]
[421017555,1776928280912,-983.68,0.00011314,2]
[421017556,1776928280921,-1610.78,0.00011314,2]
[421017557,1776928280931,-35874.4,0.00011314,2]
[421017558,1776928280941,-196.060935,0.00011315,2]
[421017559,1776928280950,-196.060935,0.00011315,2]
[421017560,1776928280959,-196.060935,0.00011315,2]
[421017561,1776928280969,-196.060935,0.00011315,2]
[421017562,1776928280978,-402.72578586,0.00011327,4]
[421017563,1776928280988,-300.0,0.0001134,2]
[421017564,1776928280997,-300.0,0.0001134,2]
[421017565,1776928281007,-300.0,0.0001134,2]
[421017566,1776928281017,-300.0,0.0001134,2]
[421017567,1776928281026,-300.0,0.0001134,2]
[421017568,1776928281036,-300.0,0.0001134,2]
[421017569,1776928281046,-300.0,0.0001134,2]
[421017570,1776928281056,-300.0,0.0001134,2]
[421017571,1776928281065,-312.0,0.0001134,2]
[421017572,1776928281075,-1100.0,0.0001134,2]
[421017573,1776928281084,-1100.0,0.0001134,2]
[421017574,1776928281094,-1100.0,0.0001134,2]
[421017575,1776928281105,-1100.0,0.0001134,2]
[421017576,1776928281114,-1100.0,0.0001134,2]
[421017577,1776928281123,-1100.0,0.0001134,2]
[421017578,1776928281133,-1100.0,0.0001134,2]
[421017579,1776928281142,-1100.0,0.0001134,2]
[421017580,1776928281152,-1100.0,0.0001134,2]
[421017581,1776928281161,-758.0,0.0001134,2]
[421017582,1776928281170,-1292.0,0.00011376,2]
[421017583,1776928281180,-438.0,0.00011376,2]
[421017584,1776928281189,-1619.0,0.00011376,2]
[421017585,1776928281199,-3256.0,0.00011376,2]
[421017586,1776928281208,-3579.0,0.00011376,2]
[421017587,1776928281218,-783.0,0.00011376,2]
[421017588,1776928281227,-590.0,0.00011376,2]
[421017589,1776928281237,-4227.0,0.00011376,2]
[421017590,1776928281247,-1194.0,0.00011376,2]
[421017591,1776928281257,-916.0,0.00011376,2]
[421017592,1776928281266,-151.0,0.00011391,2]
[421017593,1776928281276,-240.53,0.00011416,2]
[421017594,1776928281285,-300.0,0.00011499,2]
[421017595,1776928281295,-41964.89442736,0.000115,3]
[421017596,1776928281306,-6192.03,0.00011507,2]
[421017597,1776928281316,-7791.41,0.00011507,2]
[421017598,1776928281326,-500.0,0.00011532,8]
[421017599,1776928281336,-10000.0,0.00011598,2]
[421017600,1776928281347,-151.0,0.00011598,2]
[421017601,1776928281358,-169.450916,0.00011598,2]
[421017602,1776928281367,-169.450916,0.00011598,2]
[421017603,1776928281377,-169.450916,0.00011598,2]
[421017604,1776928281387,-169.450916,0.00011598,2]
[421017605,1776928281396,-8807.45323,0.000116,2]
[421017606,1776928281406,-170.53497552,0.0001164,7]
[421017607,1776928281416,-483.28,0.00011641,2]
[421017608,1776928281425,-3000.0,0.00011658,2]
[421017609,1776928281435,-1080.40548067,0.00011659,2]
[421017610,1776928281444,-153.72,0.00011659,2]
[421017611,1776928281454,-6531.96566766,0.0001166,2]
[421017612,1776928281464,-9035.0,0.00011673,2]
[421017613,1776928281473,-2258.0,0.00011673,2]
[421017614,1776928281483,-1470.0,0.00011676,2]
[421017615,1776928281492,-153.72,0.00011721,2]
[421017616,1776928281501,-303.92103139,0.0001175,2]
[421017617,1776928281510,-25000.0,0.00011751,2]
[421017618,1776928281520,-300.0,0.00011759,2]
[421017619,1776928281530,-667.46295241,0.00011759,2]
[421017620,1776928281539,-300.0,0.00011759,2]
[421017621,1776928281548,-224.31817667,0.0001176,2]
[421017622,1776928281558,-25000.0,0.0001176,2]
[421017623,1776928281568,-25000.0,0.0001176,2]
[421017624,1776928281577,-19830.85656988,0.0001176,2]
[421017625,1776928281587,-804.74849921,0.00011768,2]
[421017626,1776928281596,-279.85634855,0.00011768,2]
[421017627,1776928281606,-1500.0,0.00011768,2]
[421017628,1776928281616,-1117.83421517,0.00011768,2]
[421017629,1776928281625,-270.1737804,0.00011768,2]
[421017630,1776928281635,-1142.27055607,0.00011768,2]
[421017631,1776928281644,-1500.0,0.00011768,2]
[421017632,1776928281654,-1708.8857825,0.00011781,2]
[421017633,1776928281663,-153.72,0.00011782,2]
[421017634,1776928281672,-1040.0,0.000118,4]
[421017635,1776928281682,-5800.0,0.00011816,2]
[421017636,1776928281691,-5800.0,0.00011816,2]
[421017637,1776928281702,-5800.0,0.00011817,2]
[421017638,1776928281712,-5800.0,0.00011825,2]
[421017639,1776928281722,-5800.0,0.00011825,2]
[421017640,1776928281731,-5800.0,0.00011826,2]
[421017641,1776928281742,-5800.0,0.00011834,2]
[421017642,1776928281752,-5800.0,0.00011834,2]
[421017643,1776928281761,-5800.0,0.00011834,2]
[421017644,1776928281771,-5800.0,0.00011834,2]
[421017645,1776928281780,-5800.0,0.00011842,2]
[421017646,1776928281790,-5800.0,0.00011842,2]
[421017647,1776928281799,-5800.0,0.00011842,2]
[421017648,1776928281809,-151.0,0.00011843,2]
[421017649,1776928281819,-240.53,0.00011872,2]
[421017650,1776928281828,-300.0,0.00011899,2]
[421017651,1776928281838,-30000.0,0.000119,2]
[421017652,1776928281847,-10534.62415667,0.000119,2]
[421017653,1776928281856,-159.13361964,0.000119,2]
[421017654,1776928281867,-159.13361964,0.000119,2]
[421017655,1776928281876,-159.13361964,0.000119,2]
[421017656,1776928281887,-159.13361964,0.000119,2]
[421017657,1776928281897,-159.13361964,0.000119,2]
[421017658,1776928281907,-1300.0,0.00011932,2]
[421017659,1776928281917,-301.65783436,0.0001194,2]
[421017660,1776928281927,-308.24552455,0.00011972,2]
[421017661,1776928281936,-6025.391299,0.00011973,2]
[421017662,1776928281946,-6025.391299,0.00011973,2]
[421017663,1776928281955,-6025.391299,0.00011973,2]
[421017664,1776928281964,-6025.391299,0.00011973,2]
[421017665,1776928281973,-500.0,0.00011999,9]
[421017666,1776928281983,-500.0,0.00011999,10]
[421017667,1776928281992,-500.0,0.00011999,11]
[421017668,1776928282002,-500.0,0.00011999,12]
[421017669,1776928282011,-500.0,0.00011999,13]
[421017670,1776928282020,-300.0,0.00011999,2]
[421017671,1776928282030,-300.0,0.00011999,2]
[421017672,1776928282040,-300.0,0.00011999,2]
[421017673,1776928282050,-300.0,0.00011999,2]
[421017674,1776928282059,-300.0,0.00011999,2]
[421017675,1776928282069,-100000.0,0.00012,2]
[421017676,1776928282078,-506.69,0.00012,2]
[421017677,1776928282088,-620.04,0.00012,2]
[421017678,1776928282098,-1105229.55398077,0.00012,2]
[421017679,1776928282108,-4577.15179346,0.00012,2]
[421017680,1776928282119,-447798.09873094,0.00012,2]
[421017681,1776928282129,-888667.99477399,0.00012,2]
[421017682,1776928282138,-855250.41314599,0.00012,2]
[421017683,1776928282148,-150.0,0.00012,2]
[421017684,1776928282158,-336457.63693027,0.00012,2]
[421017685,1776928282168,-209685.31608005,0.00012,2]
[421017686,1776928282178,-13778280.3193833,0.00012,2]
[421017687,1776928282187,-20482018.88376228,0.00012,2]
[421017688,1776928282197,-695123.61879939,0.00012,2]
[421017689,1776928282207,-755634.80872995,0.00012,2]
[421017690,1776928282217,-1000000.0,0.00012,2]
[421017691,1776928282227,-3253288.41551831,0.00012,2]
[421017692,1776928282236,-445721.48753324,0.00012,2]
[421017693,1776928282246,-46323.3542548,0.00012,2]
[421017694,1776928282255,-17695.0,0.00012,5]
[421017695,1776928282264,-151.0,0.00012,2]
[421017696,1776928282277,-151.0,0.00012,2]
[421017697,1776928282287,-169.450916,0.00012,2]
[421017698,1776928282298,-169.450916,0.00012,2]
[421017699,1776928282308,-169.450916,0.00012,2]
[421017700,1776928282317,-169.450916,0.00012,2]
[421017701,1776928282328,-169.450916,0.00012,2]
[421017702,1776928282338,-169.450916,0.00012,2]
[421017703,1776928282348,-169.450916,0.00012,2]
[421017704,1776928282358,-169.450911,0.00012,2]
[421017705,1776928282368,-471.859588,0.00012,2]
[421017706,1776928282377,-471.859588,0.00012,2]
[421017707,1776928282388,-471.859588,0.00012,2]
[421017708,1776928282399,-471.859588,0.00012,2]
[421017709,1776928282409,-471.859588,0.00012,2]
[421017710,1776928282418,-471.859588,0.00012,2]
[421017711,1776928282428,-471.859588,0.00012,2]
[421017712,1776928282437,-471.859578,0.00012,2]
[421017713,1776928282447,-200.0,0.00012,2]
[421017714,1776928282456,-559.42,0.00012,2]
[421017715,1776928282466,-196.060935,0.00012,2]
[421017716,1776928282476,-196.060935,0.00012,2]
[421017717,1776928282486,-196.060935,0.00012,2]
[421017718,1776928282495,-196.060935,0.00012,2]
[421017719,1776928282505,-196.060935,0.00012,2]
[421017720,1776928282515,-196.060935,0.00012,2]
[421017721,1776928282525,-196.060935,0.00012,2]
[421017722,1776928282534,-196.060935,0.00012,2]
[421017723,1776928282544,-196.060935,0.00012,2]
[421017724,1776928282554,-196.060935,0.00012,2]
[421017725,1776928282564,-196.060935,0.00012,2]
[421017726,1776928282574,-196.060928,0.00012,2]
[421017727,1776928282584,-6025.391299,0.00012,2]
[421017728,1776928282593,-6025.391299,0.00012,2]
[421017729,1776928282603,-6025.391299,0.00012,2]
[421017730,1776928282613,-1013.77,0.00012034,2]
[421017731,1776928282624,-53067.17,0.00012055,2]